fUST/lending_fUST_20250624
["ID","MTS","AMOUNT","RATE_DAILY","PERIOD"]
[367339660,1750755088561,-151.0,0.00023584,7]
[367339661,1750755088574,-177.097396,0.00023584,7]
[367339662,1750755088584,-177.097396,0.00023584,7]
[367339663,1750755088593,-500.0,0.0002359,9]
[367339664,1750755088603,-500.0,0.0002359,9]
[367339665,1750755088613,-7737.01787155,0.00023596,2]
[367339666,1750755088622,-500.0,0.000236,2]
[367339667,1750755088632,-60179.07579981,0.000236,2]
[367339668,1750755088642,-341.10287761,0.000236,7]
[367339669,1750755088652,-151.0,0.000236,7]
[367339670,1750755088661,-353.835307,0.000236,7]
[367339671,1750755088670,-353.835307,0.000236,7]
[367339672,1750755088679,-197.3422,0.000236,7]
[367339673,1750755088688,-197.3422,0.000236,7]
[367339674,1750755088697,-671.53598711,0.00023602,4]
[367339675,1750755088707,-2500.0,0.00023605,2]
[367339676,1750755088717,-1286.74217702,0.00023605,2]
[367339677,1750755088727,-1000.91462258,0.00023605,2]
[367339678,1750755088736,-174.797159,0.00023618,7]
[367339679,1750755088746,-151.0,0.00023618,7]
[367339680,1750755088755,-151.0,0.00023618,7]
[367339681,1750755088764,-151.0,0.00023618,7]
[367339682,1750755088773,-151.0,0.00023618,7]
[367339683,1750755088783,-300.0,0.0002362,2]
[367339684,1750755088792,-647.2,0.00023625,5]
[367339685,1750755088802,-624.0,0.00023626,2]
[367339686,1750755088811,-1293.4,0.0002363,7]
[367339687,1750755088821,-500.0,0.0002364,2]
[367339688,1750755088831,-500.0,0.0002364,2]
[367339689,1750755088841,-501.15852945,0.0002364,2]
[367339690,1750755088851,-166.0,0.00023641,3]
[367339691,1750755088861,-166.0,0.00023641,3]
[367339692,1750755088870,-166.0,0.00023641,3]
[367339693,1750755088879,-166.0,0.00023641,3]
[367339694,1750755088889,-166.0,0.00023641,3]
[367339695,1750755088898,-166.0,0.00023641,3]
[367339696,1750755088907,-331.99341247,0.00023644,2]
[367339697,1750755088917,-50000.0,0.0002366,2]
[367339698,1750755088928,-154.087791,0.0002366,7]
[367339699,1750755088937,-154.087791,0.0002366,7]
[367339700,1750755088946,-151.0,0.0002366,7]
[367339701,1750755088955,-151.0,0.0002366,7]
[367339702,1750755088964,-151.0,0.0002366,7]
[367339703,1750755088973,-475.71087234,0.00023681,2]
[367339704,1750755088983,-1000.0,0.00023682,10]
[367339705,1750755088992,-3000.0,0.00023687,3]
[367339706,1750755089001,-13556.97820147,0.0002369,2]
[367339707,1750755089011,-671.53598711,0.00023721,4]
[367339708,1750755089057,-1293.4,0.0002373,6]
[367339709,1750755089066,-206.0,0.0002374,2]
[367339710,1750755089075,-331.99341247,0.00023753,2]
[367339711,1750755089085,-988.8748544,0.00023753,3]
[367339712,1750755089094,-2654.37735629,0.00023762,9]
[367339713,1750755089103,-2782.335492,0.00023766,2]
[367339714,1750755089113,-151.0,0.00023776,7]
[367339715,1750755089122,-151.0,0.00023776,7]
[367339716,1750755089131,-151.837906,0.00023776,7]
[367339717,1750755089140,-151.0,0.00023776,7]
[367339718,1750755089150,-151.0,0.00023776,7]
[367339719,1750755089159,-297.906292,0.00023776,7]
[367339720,1750755089169,-1719.938793,0.0002378,5]
[367339721,1750755089179,-98137.7422,0.000238,7]
[367339722,1750755089188,-57475.99847178,0.000238,5]
[367339723,1750755089197,-151.0,0.000238,7]
[367339724,1750755089207,-151.0,0.000238,7]
[367339725,1750755089216,-182.298771,0.000238,7]
[367339726,1750755089225,-186.655743,0.000238,7]
[367339727,1750755089234,-182.298771,0.000238,7]
[367339728,1750755089243,-186.655743,0.000238,7]
[367339729,1750755089252,-1036.040925,0.000238,5]
[367339730,1750755089262,-1000.0,0.000238,5]
[367339731,1750755089271,-151.0,0.000238,7]
[367339732,1750755089281,-2782.335492,0.000238,5]
[367339733,1750755089291,-251.679561,0.000238,7]
[367339734,1750755089300,-151.0,0.000238,7]
[367339735,1750755089310,-4000.0,0.00023808,2]
[367339736,1750755089319,-4000.0,0.00023808,2]
[367339737,1750755089329,-174.83310269,0.00023808,2]
[367339738,1750755089338,-151.0,0.0002382,7]
[367339739,1750755089347,-1000.0,0.0002382,5]
[367339740,1750755089357,-1000.0,0.0002382,5]
[367339741,1750755089366,-1293.4,0.0002383,3]
[367339742,1750755089375,-460.0,0.00023835,2]
[367339743,1750755089384,-460.0,0.00023835,2]
[367339744,1750755089393,-445.68207868,0.00023835,2]
[367339745,1750755089402,-499.69,0.00023835,2]
[367339746,1750755089411,-639.86,0.00023835,26]
[367339747,1750755089421,-589.59,0.00023835,2]
[367339748,1750755089430,-1033.48,0.00023835,2]
[367339749,1750755089439,-701.42,0.00023835,2]
[367339750,1750755089448,-460.0,0.00023835,2]
[367339751,1750755089457,-1859.83,0.00023835,2]
[367339752,1750755089467,-460.0,0.00023835,2]
[367339753,1750755089477,-151.0,0.00023835,7]
[367339754,1750755089487,-266.71,0.00023835,2]
[367339755,1750755089496,-151.0,0.00023835,7]
[367339756,1750755089505,-837.07,0.00023835,2]
[367339757,1750755089515,-1145.59,0.00023835,2]
[367339758,1750755089524,-460.0,0.00023835,2]
[367339759,1750755089533,-460.0,0.00023835,2]
[367339760,1750755089542,-460.0,0.00023835,2]
[367339761,1750755089552,-460.0,0.00023835,2]
[367339762,1750755089561,-2160.1,0.00023835,2]
[367339763,1750755089573,-460.0,0.00023835,2]
[367339764,1750755089583,-331.00449542,0.00023835,2]
[367339765,1750755089593,-151.0,0.00023835,7]
[367339766,1750755089602,-424.989549,0.00023835,7]
[367339767,1750755089611,-424.989549,0.00023835,7]
[367339768,1750755089622,-802.49,0.00023835,2]
[367339769,1750755089631,-1711.46,0.00023835,2]
[367339770,1750755089639,-152.214834,0.00023835,7]
[367339771,1750755089650,-460.0,0.00023835,2]
[367339772,1750755089660,-512.81,0.00023835,2]
[367339773,1750755089669,-1227.2,0.00023835,2]
[367339774,1750755089678,-460.0,0.00023835,2]
[367339775,1750755089689,-460.0,0.00023835,2]
[367339776,1750755089700,-460.0,0.00023835,2]
[367339777,1750755089710,-1129.31,0.00023835,2]
[367339778,1750755089720,-890.92,0.00023835,2]
[367339779,1750755089731,-503.39,0.00023835,2]
[367339780,1750755089742,-151.0,0.00023835,7]
[367339781,1750755089752,-3336.33,0.00023835,2]
[367339782,1750755089762,-3108.84,0.00023835,2]
[367339783,1750755089771,-1043.22,0.00023835,2]
[367339784,1750755089781,-460.0,0.00023835,2]
[367339785,1750755089791,-2718.8,0.00023835,2]
[367339786,1750755089802,-2297.74,0.00023835,2]
[367339787,1750755089811,-472.84,0.00023835,2]
[367339788,1750755089822,-686.97,0.00023835,2]
[367339789,1750755089831,-594.90361486,0.00023835,2]
[367339790,1750755089841,-1034.53,0.00023835,2]
[367339791,1750755089851,-4423.11,0.00023835,2]
[367339792,1750755089862,-498.87,0.00023835,2]
[367339793,1750755089871,-564.81,0.00023835,2]
[367339794,1750755089881,-1356.23,0.00023835,2]
[367339795,1750755089890,-1527.77,0.00023835,2]
[367339796,1750755089900,-460.0,0.00023835,2]
[367339797,1750755089910,-556.13,0.00023835,2]
[367339798,1750755089919,-917.06,0.00023835,2]
[367339799,1750755089931,-1048.02,0.00023835,2]
[367339800,1750755089941,-1891.95,0.00023835,2]
[367339801,1750755089951,-1140.59,0.00023835,2]
[367339802,1750755089962,-3302.7,0.00023835,2]
[367339803,1750755089972,-609.41,0.00023835,2]
[367339804,1750755089981,-1182.78,0.00023835,2]
[367339805,1750755089993,-865.91,0.00023835,2]
[367339806,1750755090003,-2811.91,0.00023835,2]
[367339807,1750755090012,-460.0,0.00023835,2]
[367339808,1750755090021,-468.72,0.00023835,2]
[367339809,1750755090031,-460.0,0.00023835,2]
[367339810,1750755090041,-1078.54,0.00023835,2]
[367339811,1750755090050,-460.0,0.00023835,2]
[367339812,1750755090060,-460.0,0.00023835,2]
[367339813,1750755090069,-1172.06,0.00023835,2]
[367339814,1750755090078,-460.0,0.00023835,2]
[367339815,1750755090087,-936.84,0.00023835,2]
[367339816,1750755090096,-1147.18,0.00023835,2]
[367339817,1750755090106,-669.18,0.00023835,2]
[367339818,1750755090115,-1364.47,0.00023835,2]
[367339819,1750755090124,-462.75,0.00023835,7]
[367339820,1750755090133,-462.75,0.00023835,7]
[367339821,1750755090144,-1382.399839,0.00023835,7]
[367339822,1750755090153,-787.57,0.00023835,2]
[367339823,1750755090163,-1382.399839,0.00023835,7]
[367339824,1750755090172,-1283.7,0.00023835,2]
[367339825,1750755090182,-3667.8,0.00023835,2]
[367339826,1750755090191,-151.707181,0.00023835,7]
[367339827,1750755090202,-2790.88,0.00023835,2]
[367339828,1750755090212,-151.707181,0.00023835,7]
[367339829,1750755090222,-827.6,0.00023835,2]
[367339830,1750755090232,-1147.28,0.00023835,2]
[367339831,1750755090243,-1404.87,0.00023835,2]
[367339832,1750755090254,-494.52,0.00023835,2]
[367339833,1750755090264,-567.76,0.00023835,2]
[367339834,1750755090274,-665.95,0.00023835,2]
[367339835,1750755090283,-2058.09,0.00023835,2]
[367339836,1750755090293,-153.0,0.00023836,2]
[367339837,1750755090303,-153.0,0.00023836,2]
[367339838,1750755090313,-153.0,0.00023836,2]
[367339839,1750755090323,-153.0,0.00023836,2]
[367339840,1750755090332,-153.0,0.00023836,2]
[367339841,1750755090341,-153.0,0.00023836,2]
[367339842,1750755090350,-153.0,0.00023836,2]
[367339843,1750755090359,-153.0,0.00023836,2]
[367339844,1750755090368,-153.0,0.00023836,2]
[367339845,1750755090377,-153.0,0.00023836,2]
[367339846,1750755090386,-153.0,0.00023836,2]
[367339847,1750755090395,-1000.0,0.0002384,5]
[367339848,1750755090405,-1000.0,0.0002384,5]
[367339849,1750755090414,-178.73,0.0002384,4]
[367339850,1750755090423,-671.53,0.0002384,4]
[367339851,1750755090432,-1000.0,0.0002386,5]
[367339852,1750755090441,-1000.0,0.0002386,5]
[367339853,1750755090450,-3500.0,0.0002386,2]
[367339854,1750755090459,-1500.0,0.00023868,2]
[367339855,1750755090468,-1000.0,0.0002388,5]
[367339856,1750755090477,-1000.0,0.0002388,5]
[367339857,1750755090485,-200.0,0.0002389,9]
[367339858,1750755090495,-11735.64453229,0.000239,2]
[367339859,1750755092129,-0.29640501,0.00019178,2]
[367339860,1750755094656,150.0,0.000191,2]
[367339861,1750755098313,333.01,0.00019098,2]
[367339862,1750755098795,164.45236053,0.00019008,2]
[367339864,1750755104152,496.58413778,0.00019098,2]
[367339866,1750755127181,-300.0,0.00019107,2]
[367339867,1750755127208,-700.0,0.00019108,2]
[367339868,1750755129499,-37.74072545,0.00019108,2]
[367339869,1750755129525,-737.74072545,0.00019108,2]
[367339870,1750755129550,-224.5185491,0.00019108,2]
[367339871,1750755131735,-513.22217635,0.00019108,2]
[367339872,1750755131762,-486.77782365,0.00019108,2]
[367339873,1750755134545,-250.9629018,0.00019108,2]
[367339874,1750755134574,-737.74072545,0.00019108,2]
[367339875,1750755134605,-11.29637275,0.00019108,2]
[367339876,1750755136017,-726.4443527,0.00019108,2]
[367339877,1750755136043,-737.74072545,0.00019108,2]
[367339878,1750755136068,-737.74072545,0.00019108,2]
[367339879,1750755136093,-737.74072545,0.00019108,2]
[367339880,1750755136117,-737.74072545,0.00019108,2]
[367339881,1750755136141,-737.74072545,0.00019108,2]
[367339882,1750755136167,-737.74072545,0.00019108,2]
[367339883,1750755136191,-741.17207767,0.00019108,2]
[367339884,1750755136215,-741.17207767,0.00019108,2]
[367339885,1750755136238,-741.17207767,0.00019108,2]
[367339886,1750755136263,-741.17207767,0.00019108,2]
[367339887,1750755136287,-741.17207767,0.00019108,2]
[367339888,1750755136308,-690.67908374,0.00019108,2]
[367339889,1750755136330,-500.0,0.00019108,2]
[367339890,1750755136353,-500.0,0.00019108,2]
[367339891,1750755136375,-379.07307733,0.00019108,2]
[367339892,1750755136398,-500.0,0.00019108,2]
[367339893,1750755136419,-500.0,0.00019108,2]
[367339894,1750755136441,-500.0,0.00019108,2]
[367339895,1750755136463,-500.0,0.00019108,2]
[367339896,1750755136485,-500.0,0.00019108,2]
[367339897,1750755136509,-500.0,0.00019108,2]
[367339898,1750755136530,-500.0,0.00019108,2]
[367339899,1750755136553,-499.696185,0.00019108,2]
[367339900,1750755136576,-500.0,0.00019108,2]
[367339901,1750755136604,-500.0,0.00019108,2]
[367339902,1750755136628,-500.0,0.00019108,2]
[367339903,1750755136653,-500.0,0.00019108,2]
[367339904,1750755136678,-500.0,0.00019108,2]
[367339905,1750755136700,-216.68966033,0.00019108,2]
[367339906,1750755136723,-580.51930617,0.00019108,2]
[367339907,1750755136746,-429.88162491,0.00019108,2]
[367339908,1750755136768,-500.0,0.00019173,2]
[367339909,1750755136789,-500.0,0.00019173,2]
[367339910,1750755136810,-500.0,0.00019173,2]
[367339911,1750755136832,-459.70359499,0.00019178,2]
[367339912,1750755136854,-463.45299244,0.00019178,2]
[367339913,1750755136875,-460.0,0.00019178,2]
[367339914,1750755136897,-460.0,0.00019178,2]
[367339915,1750755136918,-460.0,0.00019178,2]
[367339916,1750755136939,-460.0,0.00019178,2]
[367339917,1750755136961,-200.6829003,0.00019178,2]
[367339918,1750755136983,-460.0,0.00019178,2]
[367339919,1750755137005,-460.0,0.00019178,2]
[367339920,1750755137028,-460.0,0.00019178,2]
[367339921,1750755137228,-52.87248104,0.00019178,2]
[367339923,1750755187052,486.996728,0.00013699,2]
[367339925,1750755197818,328.90472106,0.00019078,2]
[367339926,1750755203642,-300.0,0.00019177,2]
[367339927,1750755203664,-407.12751896,0.00019178,2]
[367339928,1750755203687,-460.0,0.00019178,2]
[367339929,1750755203710,-518.11886002,0.00019178,2]
[367339930,1750755203731,-629.69,0.00019178,2]
[367339931,1750755203752,-460.0,0.00019178,2]
[367339932,1750755203774,-460.0,0.00019178,2]
[367339933,1750755203794,-460.0,0.00019178,2]
[367339934,1750755203814,-460.0,0.00019178,2]
[367339935,1750755203834,-407.97129216,0.00019178,2]
[367339936,1750755203854,-460.0,0.00019178,2]
[367339937,1750755203874,-460.0,0.00019178,2]
[367339938,1750755203894,-448.67180794,0.00019178,2]
[367339939,1750755203914,-460.7475211,0.00019178,2]
[367339940,1750755203934,-460.0,0.00019178,2]
[367339941,1750755203954,-460.0,0.00019178,2]
[367339942,1750755203974,-460.0,0.00019178,2]
[367339943,1750755203996,-2852.43,0.00019178,2]
[367339944,1750755204017,-460.0,0.00019178,2]
[367339945,1750755204037,-460.0,0.00019178,2]
[367339946,1750755204057,-460.0,0.00019178,2]
[367339947,1750755204077,-460.0,0.00019178,2]
[367339948,1750755204097,-460.0,0.00019178,2]
[367339949,1750755204118,-460.0,0.00019178,2]
[367339950,1750755204138,-460.0,0.00019178,2]
[367339951,1750755204159,-460.0,0.00019178,2]
[367339952,1750755204180,-460.0,0.00019178,2]
[367339953,1750755204200,-460.0,0.00019178,2]
[367339954,1750755204221,-1094.79,0.00019178,2]
[367339955,1750755204246,-1304.92,0.00019178,2]
[367339956,1750755204267,-460.0,0.00019178,2]
[367339957,1750755204288,-460.0,0.00019178,2]
[367339958,1750755204485,-460.0,0.00019178,2]
[367339959,1750755204506,-460.0,0.00019178,2]
[367339960,1750755204527,-460.0,0.00019178,2]
[367339961,1750755204553,-460.0,0.00019178,2]
[367339962,1750755204574,-460.0,0.00019178,2]
[367339963,1750755204595,-460.0,0.00019178,2]
[367339964,1750755204620,-460.0,0.00019178,2]
[367339965,1750755204641,-460.0,0.00019178,2]
[367339966,1750755204665,-460.0,0.00019178,2]
[367339967,1750755204687,-460.0,0.00019178,2]
[367339968,1750755204711,-256.53299982,0.00019178,2]
[367339970,1750755217652,236.03405117,0.00019078,2]
[367339971,1750755248532,378.80741682,0.00019078,3]
[367339972,1750755267092,-300.0,0.00019177,2]
[367339973,1750755267116,-293.0,0.00019177,2]
[367339974,1750755267139,-500.0,0.00019177,2]
[367339975,1750755267160,-203.46700018,0.00019178,2]
[367339976,1750755267181,-460.0,0.00019178,2]
[367339977,1750755267203,-321.25201435,0.00019178,2]
[367339978,1750755267225,-472.99,0.00019178,2]
[367339979,1750755267247,-154.84364175,0.00019178,2]
[367339980,1750755267269,-777.21,0.00019178,2]
[367339981,1750755267291,-460.0,0.00019178,2]
[367339982,1750755267313,-460.0,0.00019178,2]
[367339983,1750755267337,-460.0,0.00019178,2]
[367339984,1750755267357,-429.10236389,0.00019178,2]
[367339985,1750755267379,-460.0,0.00019178,2]
[367339986,1750755267399,-460.0,0.00019178,2]
[367339987,1750755267419,-460.0,0.00019178,2]
[367339988,1750755267439,-460.0,0.00019178,2]
[367339989,1750755267460,-460.0,0.00019178,2]
[367339990,1750755267482,-460.0,0.00019178,2]
[367339991,1750755267503,-460.0,0.00019178,2]
[367339992,1750755267525,-460.0,0.00019178,2]
[367339993,1750755267547,-460.0,0.00019178,2]
[367339994,1750755267568,-460.0,0.00019178,2]
[367339995,1750755267588,-460.0,0.00019178,2]
[367339996,1750755267609,-460.0,0.00019178,2]
[367339997,1750755267633,-460.0,0.00019178,2]
[367339998,1750755267655,-460.0,0.00019178,2]
[367339999,1750755267678,-1069.77,0.00019178,2]
[367340000,1750755267700,-825.67,0.00019178,2]
[367340001,1750755267724,-939.86,0.00019178,2]
[367340002,1750755267745,-460.0,0.00019178,2]
[367340003,1750755267767,-460.0,0.00019178,2]
[367340004,1750755267788,-460.0,0.00019178,2]
[367340005,1750755267810,-460.0,0.00019178,2]
[367340006,1750755267834,-513.83497983,0.00019178,2]
[367340007,1750755304114,-295.08180527,0.00019177,2]
[367340008,1750755304138,-529.0646444,0.00019177,2]
[367340009,1750755304162,-175.85355033,0.00019177,2]
[367340010,1750755313871,-1000.0,0.00019176,2]
[367340012,1750755330520,155.71071322,0.00019016,2]
[367340014,1750755332927,-200.0,0.00019176,2]
[367340015,1750755332949,-300.0,0.00019176,2]
[367340016,1750755332971,-300.0,0.00019176,2]
[367340017,1750755332999,-188.89,0.00019177,2]
[367340018,1750755333023,-248.34438518,0.00019177,2]
[367340019,1750755333044,-500.0,0.00019177,2]
[367340020,1750755333068,-758.02513203,0.00019177,2]
[367340021,1750755333090,-758.02513203,0.00019177,2]
[367340022,1750755333114,-758.02513203,0.00019177,2]
[367340023,1750755333138,-758.02513203,0.00019177,2]
[367340024,1750755333162,-758.02513203,0.00019177,2]
[367340025,1750755333187,-758.02513203,0.00019177,2]
[367340026,1750755333213,-758.02513203,0.00019177,2]
[367340027,1750755333239,-758.02513203,0.00019177,2]
[367340028,1750755333266,-758.02513203,0.00019177,2]
[367340029,1750755333293,-758.02513203,0.00019177,2]
[367340030,1750755333318,-758.02513203,0.00019177,2]
[367340031,1750755333342,-758.02513203,0.00019177,2]
[367340032,1750755333366,-758.02513203,0.00019177,2]
[367340033,1750755333390,-758.02513203,0.00019177,2]
[367340034,1750755333415,-758.02513203,0.00019177,2]
[367340035,1750755333441,-758.02513203,0.00019177,2]
[367340036,1750755333467,-758.02513203,0.00019177,2]
[367340037,1750755333490,-758.02513203,0.00019177,2]
[367340038,1750755333514,-758.02513203,0.00019177,2]
[367340039,1750755333538,-758.02513203,0.00019177,2]
[367340040,1750755333561,-785.58968228,0.00019177,2]
[367340041,1750755333586,-785.58968228,0.00019177,2]
[367340042,1750755333611,-785.58968228,0.00019177,2]
[367340043,1750755333798,-174.49392738,0.00019177,2]
[367340044,1750755337918,-611.0957549,0.00019177,2]
[367340045,1750755337944,-388.9042451,0.00019177,2]
[367340046,1750755341264,-396.68543718,0.00019177,2]
[367340047,1750755341290,-603.31456282,0.00019177,2]
[367340048,1750755342987,-182.27511946,0.00019177,2]
[367340049,1750755343012,-785.58968228,0.00019177,2]
[367340050,1750755343035,-32.13519826,0.00019177,2]
[367340051,1750755359572,162.58341691,0.00018868,2]
[367340052,1750755414820,828.07710209,0.00019078,2]
[367340053,1750755496897,-653.59962743,0.00019106,2]
[367340054,1750755496919,-300.0,0.00019176,2]
[367340055,1750755496942,-46.40037257,0.00019176,2]
[367340059,1750755654986,-246.0,0.00019176,2]
[367340060,1750755655009,-300.0,0.00019176,2]
[367340061,1750755655032,-454.0,0.00019176,2]
[367340062,1750755671506,-746.0,0.00019176,2]
[367340063,1750755671529,-254.0,0.00019176,2]
[367340065,1750755859268,-1000.0,0.00019168,3]
[367340066,1750755862408,-1000.0,0.00019168,3]
[367340067,1750755890783,-374.38,0.00019168,3]
[367340068,1750755890805,-625.62,0.00019168,3]
[367340069,1750755892169,-561.57,0.00019168,3]
[367340070,1750755892192,-438.43,0.00019168,3]
[367340071,1750755904092,277.66323133,0.00019068,2]
[367340072,1750755906057,-155.17,0.00019168,3]
[367340073,1750755906079,-296.8,0.00019168,3]
[367340074,1750755906100,-548.03,0.00019168,3]
[367340075,1750755939893,724.56746432,0.00019078,2]
[367340078,1750756082128,-342.39,0.00019168,3]
[367340079,1750756082153,-222.01,0.00019168,2]
[367340080,1750756082174,-222.01,0.00019168,2]
[367340081,1750756082195,-213.59,0.00019168,2]
[367340082,1750756083343,-8.42,0.00019168,2]
[367340083,1750756083368,-500.0,0.00019175,2]
[367340084,1750756083393,-205.5921202,0.00019175,2]
[367340085,1750756083417,-285.9878798,0.00019175,2]
[367340086,1750756085051,-214.0121202,0.00019175,2]
[367340087,1750756085072,-423.85816638,0.00019175,2]
[367340088,1750756085094,-362.12971342,0.00019175,2]
[367340089,1750756086209,-137.87028658,0.00019175,2]
[367340090,1750756086231,-862.12971342,0.00019175,2]
[367340091,1750756087396,-337.87028658,0.00019175,2]
[367340092,1750756087418,-300.0,0.00019175,2]
[367340093,1750756087439,-300.0,0.00019175,2]
[367340094,1750756087463,-62.12971342,0.00019175,2]
[367340095,1750756088742,-511.77776246,0.00019175,2]
[367340096,1750756088765,-488.22223754,0.00019175,2]
[367340097,1750756090091,-85.68523834,0.00019175,2]
[367340098,1750756090117,-573.90747588,0.00019175,2]
[367340099,1750756090140,-340.40728578,0.00019175,2]
[367340100,1750756091187,-233.5001901,0.00019175,2]
[367340101,1750756091211,-573.90747588,0.00019175,2]
[367340102,1750756091233,-192.59233402,0.00019175,2]
[367340103,1750756092485,-381.31514186,0.00019175,2]
[367340104,1750756092508,-573.90747588,0.00019175,2]
[367340105,1750756092533,-44.77738226,0.00019175,2]
[367340106,1750756093750,-529.13009362,0.00019175,2]
[367340107,1750756093776,-470.86990638,0.00019175,2]
[367340108,1750756102867,-103.0375695,0.00019175,2]
[367340109,1750756102891,-573.90747588,0.00019175,2]
[367340110,1750756102914,-323.05495462,0.00019175,2]
[367340111,1750756104108,-250.85252126,0.00019175,2]
[367340112,1750756104134,-573.90747588,0.00019175,2]
[367340113,1750756104161,-175.24000286,0.00019175,2]
[367340114,1750756105344,-398.66747302,0.00019175,2]
[367340115,1750756105368,-573.90747588,0.00019175,2]
[367340116,1750756105392,-27.4250511,0.00019175,2]
[367340117,1750756106494,-546.48242478,0.00019175,2]
[367340118,1750756106518,-453.51757522,0.00019175,2]
[367340119,1750756107526,-120.38990066,0.00019175,2]
[367340120,1750756107551,-573.90747588,0.00019175,2]
[367340121,1750756107575,-305.70262346,0.00019175,2]
[367340122,1750756108670,-268.20485242,0.00019175,2]
[367340123,1750756108694,-573.90747588,0.00019175,2]
[367340124,1750756108717,-157.8876717,0.00019175,2]
[367340125,1750756113618,-167.0,0.00019175,2]
[367340126,1750756120769,-167.0,0.00019175,2]
[367340127,1750756121987,-127.93240224,0.00019175,2]
[367340128,1750756122013,-39.06759776,0.00019175,2]
[367340129,1750756123055,-167.0,0.00019175,2]
[367340130,1750756124615,-167.0,0.00019175,2]
[367340131,1750756125680,-167.0,0.00019175,2]
[367340132,1750756126814,-79.75247618,0.00019175,2]
[367340133,1750756126837,-87.24752382,0.00019175,2]
[367340134,1750756127885,-167.0,0.00019175,2]
[367340135,1750756128998,-167.0,0.00019175,2]
[367340136,1750756130033,-167.0,0.00019175,2]
[367340137,1750756131102,-31.57255012,0.00019175,2]
[367340138,1750756131127,-135.42744988,0.00019175,2]
[367340139,1750756150834,-167.0,0.00019174,2]
[367340140,1750756152104,-133.0,0.00019174,2]
[367340141,1750756152131,-34.0,0.00019175,2]
[367340142,1750756153312,-167.0,0.00019175,2]
[367340143,1750756165720,-283.39262406,0.00019175,2]
[367340144,1750756165744,-619.82007394,0.00019175,2]
[367340145,1750756165768,-619.82007394,0.00019175,2]
[367340146,1750756165793,-619.82007394,0.00019175,2]
[367340147,1750756165818,-619.82007394,0.00019175,2]
[367340148,1750756165842,-619.82007394,0.00019175,2]
[367340149,1750756165871,-189.80381089,0.00019177,2]
[367340150,1750756165896,-460.0,0.00019178,2]
[367340151,1750756165921,-460.0,0.00019178,2]
[367340152,1750756165944,-460.0,0.00019178,2]
[367340153,1750756165974,-453.72137436,0.00019178,2]
[367340154,1750756166001,-460.0,0.00019178,2]
[367340155,1750756166025,-460.0,0.00019178,2]
[367340156,1750756166055,-460.0,0.00019178,2]
[367340157,1750756166080,-460.0,0.00019178,2]
[367340158,1750756166103,-460.0,0.00019178,2]
[367340159,1750756166126,-460.0,0.00019178,2]
[367340160,1750756166148,-248.17404541,0.00019178,2]
[367340161,1750756166172,-460.0,0.00019178,2]
[367340162,1750756166195,-460.0,0.00019178,2]
[367340163,1750756166220,-460.0,0.00019178,2]
[367340164,1750756166247,-205.80777558,0.00019178,2]
[367340166,1750756220377,479.85495476,0.00019078,2]
[367340167,1750756220401,154.14157652,0.00019078,2]
[367340170,1750756232334,-238.0,0.00019177,2]
[367340171,1750756232344,-1200.0,0.00019177,2]
[367340172,1750756232354,-300.0,0.00019177,2]
[367340173,1750756232364,-160.0,0.00019177,2]
[367340174,1750756232375,-254.19222442,0.00019178,2]
[367340175,1750756232385,-460.0,0.00019178,2]